[Event "Slovakian-ch Youth 2022"]
[Site "Lubovna"]
[Date "2022.05.26"]
[Round "7.5"]
[White "Polomsky, Tomas"]
[Black "Paholok, Adam"]
[Result "1/2-1/2"]
[ECO "A04"]
[WhiteElo "1467"]
[BlackElo "1449"]
[Annotator "NA RC COMBH"]
[PlyCount "98"]
[EventDate "2022.05.22"]
[EventCountry "SVK"]
[SourceTitle "playchess.com"]
[Source "ChessBase"]
[SourceQuality "1"]
[TimeControl "40/5400+30:1800+30"]

1. Nf3 {[%emt 0:00:20]} e6 {[%emt 0:01:19]} 2. e3 {[%emt 0:01:31]} c5 {[%emt 0:03:37]} 3. d4 {[%emt 0:03:10]} Qc7 {[%emt 0:07:06]} 4. c3 {[%emt 0:02:07]} Nc6 {[%emt 0:02:45]} 5. Bd3 {[%emt 0:03:07]} b6 {[%emt 0:02:17]} 6. Nbd2 {[%emt 0:03:14]} Bb7 {[%emt 0:01:04]} 7. Qe2 {[%emt 0:03:07]} cxd4 {[%emt 0:01:30]} 8. cxd4 {[%emt 0:01:18]} Nb4 {[%emt 0:01:10]} 9. O-O {[%emt 0:01:52]} Nxd3 {[%emt 0:00:20]} 10. Qxd3 {[%emt 0:00:01]} Nf6 {[%emt 0:03:02]} 11. e4 {[%emt 0:05:09]} Be7 {[%emt 0:04:06]} 12. Re1 {[%emt 0:06:39]} O-O {[%emt 0:03:22]} 13. b3 {[%emt 0:06:06]} Rfc8 {[%emt 0:03:47]} 14. e5 {[%emt 0:09:35]} Nd5 {[%emt 0:03:42]} 15. Nc4 {[%emt 0:02:57]} Nb4 {[%emt 0:03:10]} 16. Qe2 {[%emt 0:05:30]} Ba6 {[%emt 0:10:42]} 17. Qe4 {[%emt 0:08:27]} Bxc4 {[%emt 0:01:26]} 18. bxc4 {[%emt 0:00:29]} Qxc4 {[%emt 0:01:17]} 19. Bg5 {[%emt 0:00:43]} Bxg5 {[%emt 0:02:08]} 20. Nxg5 {[%emt 0:00:11]} Qd3 {[%emt 0:01:21]} 21. Qf4 {[%emt 0:01:55]} Qg6 {[%emt 0:02:21]} 22. Rec1 {[%emt 0:05:49]} Nd5 {[%emt 0:12:01]} 23. Rxc8+ {[%emt 0:01:00]} Rxc8 {[%emt 0:00:08]} 24. Rc1 {[%emt 0:01:11]} Rxc1+ {[%emt 0:02:22]} 25. Qxc1 {[%emt 0:00:01]} Nc3 {[%emt 0:02:34]} 26. Qb2 {[%emt 0:08:15]} Qb1+ {[%emt 0:00:41]} 27. Qxb1 {[%emt 0:00:01]} Nxb1 {[%emt 0:00:07]} 28. Ne4 {[%emt 0:00:19]} Na3 {[%emt 0:02:46]} 29. Nd6 {[%emt 0:00:30]} Nc2 {[%emt 0:00:45]} 30. Nc8 {[%emt 0:01:56]} Nxd4 {[%emt 0:00:50]} 31. Nxa7 {[%emt 0:00:02]} Nc6 {[%emt 0:00:29]} 32. Nc8 {[%emt 0:00:18]} b5 {[%emt 0:00:37]} 33. Nd6 {[%emt 0:00:23]} b4 {[%emt 0:01:58]} 34. Nc4 {[%emt 0:00:22]} g5 {[%emt 0:04:29]} 35. g3 {[%emt 0:02:39]} Kg7 {[%emt 0:01:39]} 36. f4 {[%emt 0:00:50]} gxf4 {[%emt 0:08:52]} 37. gxf4 {[%emt 0:00:11]} Kg6 {[%emt 0:00:31]} 38. Kf2 {[%emt 0:01:12]} Kf5 {[%emt 0:00:34]} 39. Ke3 {[%emt 0:02:08]} f6 {[%emt 0:02:29]} 40. Nd6+ {[%emt 0:01:17]} Kg6 {[%emt 0:00:21]} 41. Ke4 {[%emt 0:30:51]} fxe5 {[%emt 0:06:17]} 42. fxe5 {[%emt 0:00:00]} Kg5 {[%emt 0:01:12]} 43. Ne8 h5 {[%emt 0:02:43]} 44. Ng7 {[%emt 0:00:00]} Kg6 {[%emt 0:07:31]} 45. Ne8 {[%emt 0:00:00]} Kf7 {[%emt 0:03:26]} 46. Nd6+ {[%emt 0:00:00]} Kg6 {[%emt 0:00:44]} 47. Ne8 {[%emt 0:00:00]} Kg5 {[%emt 0:00:06]} 48. h3 {[%emt 0:00:00]} Kh4 {[%emt 0:00:36]} 49. Nf6 {[%emt 0:00:00]} Kxh3 {[%emt 0:02:18]} 1/2-1/2

[Event "Slovakian-ch Youth 2022"]
[Site "Lubovna"]
[Date "2022.05.26"]
[Round "7.6"]
[White "Kapec, Kristian"]
[Black "Vadila, Ondrej"]
[Result "0-1"]
[ECO "B13"]
[WhiteElo "1902"]
[BlackElo "2082"]
[Annotator "TA"]
[PlyCount "70"]
[EventDate "2022.05.22"]
[EventCountry "SVK"]
[SourceTitle "playchess.com"]
[Source "ChessBase"]
[SourceQuality "1"]
[TimeControl "40/5400+30:1800+30"]

{[%evp 21,70,16,23,17,10,18,22,0,0,0,0,0,0,0,0,15,16,-7,18,-96,-77,-135,-117,-118,-120,-170,-170,-173,-157,-756,-750,-813,-811,-787,-772,-1122,-1112,-781,-564,-804,-804,-974,-974,-969,-948,-981,-965,-1221,-1206,-1198,-1188]} 1. e4 {[%emt 0:09:29]} c6 {[%emt 0:00:12]} 2. d4 {[%emt 0:00:44]} d5 {[%emt 0:00:06]} 3. exd5 {[%emt 0:00:27]} cxd5 {[%emt 0:00:06]} 4. Bd3 {[%emt 0:01:26]} Nc6 {[%emt 0:00:20]} 5. c3 {[%emt 0:00:27]} Nf6 {[%emt 0:00:22]} 6. Nf3 {[%emt 0:03:09]} Bg4 {[%emt 0:01:50]} 7. h3 {[%emt 0:00:24]} Bh5 {[%emt 0:00:26]} 8. Bf4 {[%emt 0:04:46]} e6 {[%emt 0:05:27]} 9. Nbd2 {[%emt 0:02:03]} Bd6 {[%emt 0:01:39]} 10. Bxd6 {[%emt 0:01:09]} Qxd6 {[%emt 0:00:06]} 11. O-O {[%emt 0:04:27]} O-O {[%emt 0:10:20]} 12. Re1 {[%emt 0:04:39] B13: Caro-Kann: Exchange Variation and Panov-Botvinnik Attack.} Rab8 {[%emt 0:03:12]} 13. a4 {[%emt 0:01:35]} Rfe8 {[%emt 0:03:15] [#]} 14. g4 $146 {[%emt 0:01:23] The position is equal.} ({Predecessor:} 14. Bc2 a6 15. a5 Nd7 16. g4 Bg6 17. Bxg6 hxg6 18. Kg2 f6 19. b4 e5 20. dxe5 Ncxe5 {½-½ (20) Araujo,R (1916)-Silva,F Sao Luis 2022}) 14... Bg6 {[%emt 0:00:42]} 15. Bxg6 {[%emt 0:00:27]} hxg6 {[%emt 0:00:08]} 16. Ne5 {[%emt 0:00:25]} Nd7 {[%emt 0:10:55][%cal Rd7e5]} 17. f4 {[%emt 0:05:40]} f6 {[%emt 0:20:53]} 18. Nxd7 {[%emt 0:05:07]} Qxd7 {[%emt 0:00:11]} 19. Qc2 {[%emt 0:00:20]} Kf7 {[%emt 0:00:25]} 20. Re3 {[%emt 0:02:26] [#]} (20. Qd3 $11) 20... Qc7 $1 $17 {[%emt 0:03:08]} 21. Rf1 {[%emt 0:04:53] [#]} ({White should play} 21. Nf3) 21... Nxd4 $1 {[%emt 0:06:52][%mdl 512]} 22. Qd3 {[%emt 0:00:20]} Nc6 {[%emt 0:00:07][%cal Bd4c6,Bc6e5,Be5c4][%mdl 32]} 23. f5 {[%emt 0:01:28]} (23. h4 $17) 23... Ne5 $19 {[%emt 0:00:08]} 24. fxe6+ {[%emt 0:00:55]} Rxe6 {[%emt 0:00:05]} 25. Qxd5 {[%emt 0:00:40] Loses the game.} (25. Qd4 $17) 25... Rd8 {[%emt 0:00:05] Black is clearly winning.} 26. Qg2 {[%emt 0:00:44] [#]} Rxd2 $1 {[%emt 0:00:12][%mdl 512]} 27. Qxd2 {[%emt 0:06:43]} Nc4 $1 {[%emt 0:00:05][%csl LRd2,LRe3]} 28. Qd4 {[%emt 0:08:38]} Nxe3 {[%emt 0:00:15]} 29. Rf3 {[%emt 0:01:44] Inhibits Qg3+.} Qc4 {[%emt 0:11:28]} 30. Qd7+ {[%emt 0:01:23]} Re7 {[%emt 0:00:10]} 31. Qxe7+ {[%emt 0:00:05]} Kxe7 {[%emt 0:00:04]} 32. Rxe3+ {[%emt 0:00:05]} Kd7 {[%emt 0:00:07]} 33. Kf2 {[%emt 0:00:13]} Qxa4 {[%emt 0:00:06]} 34. Re2 {[%emt 0:00:23]} Qf4+ {[%emt 0:00:12]} 35. Kg2 {[%emt 0:00:06]} f5 {[%emt 0:00:04] Weighted Error Value: White=1.00/Black=0.11 (very precise)} 0-1

[Event "Slovakian-ch Youth 2022"]
[Site "Lubovna"]
[Date "2022.05.26"]
[Round "7.6"]
[White "Gay, Lukas"]
[Black "Tokarcik, Jan"]
[Result "1/2-1/2"]
[ECO "C65"]
[WhiteElo "1480"]
[BlackElo "1313"]
[Annotator "NA RC COMBH"]
[PlyCount "89"]
[EventDate "2022.05.22"]
[EventCountry "SVK"]
[SourceTitle "playchess.com"]
[Source "ChessBase"]
[SourceQuality "1"]
[TimeControl "40/5400+30:1800+30"]

1. e4 {[%emt 0:00:16]} e5 {[%emt 0:00:06]} 2. Nf3 {[%emt 0:00:17]} Nc6 {[%emt 0:00:08]} 3. Bb5 {[%emt 0:00:10]} Nf6 {[%emt 0:01:25]} 4. Bxc6 {[%emt 0:00:32]} dxc6 {[%emt 0:00:09]} 5. d3 {[%emt 0:00:19]} Bd6 {[%emt 0:00:16]} 6. Nbd2 {[%emt 0:00:46]} O-O {[%emt 0:01:49]} 7. Nc4 {[%emt 0:00:21]} Re8 {[%emt 0:00:50]} 8. Qe2 {[%emt 0:00:56]} Bg4 {[%emt 0:03:21]} 9. Bd2 {[%emt 0:01:04]} b5 {[%emt 0:25:46]} 10. Ne3 {[%emt 0:01:13]} Be6 {[%emt 0:03:38]} 11. h4 {[%emt 0:07:26]} h6 {[%emt 0:09:28]} 12. Bc3 {[%emt 0:10:11]} Bd7 {[%emt 0:08:14]} 13. O-O-O {[%emt 0:01:33]} b4 {[%emt 0:01:58]} 14. Bd2 {[%emt 0:01:21]} a5 {[%emt 0:11:12]} 15. Rdg1 {[%emt 0:02:22]} Ng4 {[%emt 0:05:40]} 16. Nxg4 {[%emt 0:12:35]} Bxg4 {[%emt 0:00:25]} 17. Qe3 {[%emt 0:00:47]} Be6 {[%emt 0:01:05]} 18. Kb1 {[%emt 0:00:56]} a4 {[%emt 0:02:37]} 19. g4 {[%emt 0:00:41]} b3 {[%emt 0:01:26]} 20. g5 {[%emt 0:02:32]} h5 {[%emt 0:04:14]} 21. cxb3 {[%emt 0:02:25]} axb3 {[%emt 0:00:44]} 22. g6 {[%emt 0:00:40]} f6 {[%emt 0:02:10]} 23. a3 {[%emt 0:06:34]} Qe7 {[%emt 0:01:53]} 24. Bc3 {[%emt 0:03:07]} Red8 {[%emt 0:10:29]} 25. Rd1 {[%emt 0:01:44]} Bg4 {[%emt 0:02:55]} 26. Rdg1 {[%emt 0:01:00]} Bc5 {[%emt 0:00:35]} 27. Qe2 {[%emt 0:00:37]} Qd6 {[%emt 0:00:39]} 28. Rxg4 {[%emt 0:02:02]} hxg4 {[%emt 0:00:21]} 29. Ne1 {[%emt 0:00:05]} Kf8 {[%emt 0:00:50]} 30. Qxg4 {[%emt 0:00:34]} Ke7 {[%emt 0:00:21]} 31. h5 {[%emt 0:00:40]} Rh8 {[%emt 0:00:18]} 32. h6 {[%emt 0:00:42]} Rxh6 {[%emt 0:00:32]} 33. Rxh6 {[%emt 0:00:09]} gxh6 {[%emt 0:00:03]} 34. Qh5 {[%emt 0:00:28]} Qd8 {[%emt 0:00:45]} 35. f4 {[%emt 0:00:46]} Bd4 {[%emt 0:01:00]} 36. Bxd4 {[%emt 0:00:29]} exd4 {[%emt 0:00:11]} 37. e5 {[%emt 0:00:54]} Qh8 {[%emt 0:00:52]} 38. Qh4 {[%emt 0:01:59]} Rg8 {[%emt 0:00:31]} 39. f5 {[%emt 0:00:16]} c5 {[%emt 0:00:28]} 40. e6 {[%emt 0:00:27]} h5 {[%emt 0:00:28]} 41. Qf4 {[%emt 0:30:30]} Rc8 {[%emt 0:30:26]} 42. Ng2 {[%emt 0:00:08]} h4 {[%emt 0:00:00]} 43. Qc1 {[%emt 0:00:00]} Kd6 {[%emt 0:00:00]} 44. Qf4+ {[%emt 0:00:22]} Ke7 {[%emt 0:00:00]} 45. Qc1 {[%emt 0:01:14]} 1/2-1/2

[Event "Slovakian-ch Youth 2022"]
[Site "Lubovna"]
[Date "2022.05.26"]
[Round "7.7"]
[White "Cedzo, Adam"]
[Black "Stevik, Patrik"]
[Result "0-1"]
[ECO "B06"]
[WhiteElo "1869"]
[BlackElo "2249"]
[Annotator "TA"]
[PlyCount "64"]
[EventDate "2022.05.22"]
[EventCountry "SVK"]
[SourceTitle "playchess.com"]
[Source "ChessBase"]
[SourceQuality "1"]
[TimeControl "40/5400+30:1800+30"]

{[%evp 15,64,23,22,21,72,72,145,63,80,33,34,-3,48,32,52,0,50,-48,-33,-120,-25,-98,-87,-108,-70,-97,-79,-80,-87,-68,-72,-96,-81,-103,-77,-490,-478,-470,-445,-529,-518,-528,-372,-409,-395,-981,-961,-957,-901,-1897,-1865]} 1. e4 {[%emt 0:02:24]} g6 {[%emt 0:00:33]} 2. d4 {[%emt 0:00:46]} Bg7 {[%emt 0:00:09]} 3. Nc3 {[%emt 0:00:44]} d6 {[%emt 0:00:20]} 4. Be3 {[%emt 0:01:08]} a6 {[%emt 0:00:25]} 5. Qd2 {[%emt 0:01:11]} b5 {[%emt 0:00:28]} 6. f3 {[%emt 0:01:24]} Bb7 {[%emt 0:00:27]} 7. h4 {[%emt 0:02:41]} h5 $1 {[%emt 0:02:18] The main line 7...h5 scores better than 7...h6.} 8. Nh3 {[%emt 0:04:15]} Nd7 {[%emt 0:00:42]} 9. Ng5 {[%emt 0:03:05] B06: Modern Defence.} Rc8 {[%emt 0:01:55]} (9... Ngf6 $11) 10. a4 $16 {[%emt 0:03:55]} b4 {[%emt 0:02:31] [#]} ({Black should try} 10... c6) 11. Nd1 {[%emt 0:02:17]} (11. Bc4 $1 $16 {[%cal Rc4f7]} e6 12. Ne2) 11... a5 {[%emt 0:05:03]} 12. Bc4 {[%emt 0:05:29]} (12. c3 $16) 12... e6 {[%emt 0:02:14] [#]} 13. O-O $146 {[%emt 0:15:22]} (13. d5 {seems wilder.} Ne5 14. Bb5+ c6 15. dxe6 cxb5 16. exf7+ Nxf7 17. Ne6) ({Predecessor:} 13. c3 c5 14. Bb5 Ngf6 15. Nf2 Qe7 16. Rd1 Bc6 17. Qe2 O-O 18. O-O Bxb5 19. Qxb5 {1-0 (60) Gruzmann,B (2250)-Holinka,H (2009) Berlin 2015}) 13... Ngf6 {[%emt 0:03:18]} ({Better is} 13... d5 $11 14. Bb5 Ne7) 14. Nf2 {[%emt 0:03:28]} Qe7 {[%emt 0:01:44]} 15. Bd3 {[%emt 0:08:18]} (15. c3 $14) 15... O-O {[%emt 0:04:12]} (15... c5 $1 $11) 16. Ngh3 {[%emt 0:05:09]} (16. c3 $14) 16... c5 {[%emt 0:01:30]} 17. dxc5 {[%emt 0:03:30]} (17. c3 $1 $15) 17... dxc5 {[%emt 0:06:32]} ({Stronger than} 17... Nxc5 18. Bb5 $15) (17... d5 $17 {And now ...dxe4 would win.} 18. Ng5 dxe4 19. Bxe4 Nxc5 20. Bxb7 Nxb7) 18. c3 {[%emt 0:07:09]} (18. Bb5 $11 {keeps the balance.}) 18... c4 $17 {[%emt 0:03:45] [#] White must now prevent ...bxc3.} 19. Be2 {[%emt 0:01:14]} Rfd8 {[%emt 0:00:58]} 20. cxb4 {[%emt 0:03:12]} axb4 {[%emt 0:02:41]} ({But not} 20... Qxb4 $6 21. Rfd1 $11) 21. Rfc1 {[%emt 0:02:50]} Ba6 {[%emt 0:02:13]} 22. Qe1 {[%emt 0:00:49]} Rc6 {[%emt 0:05:55][%cal Of6e4]} 23. Bd2 {[%emt 0:07:49]} Rb8 {[%emt 0:01:52][%cal Of6e4] Black is more active.} ({Much weaker is} 23... c3 $6 24. bxc3 b3 25. Rcb1 $11) 24. Nd3 {[%emt 0:02:20][%cal Rd3b4]} Rcb6 {[%emt 0:08:16]} 25. e5 $2 {[%emt 0:00:51][%mdl 8192] Loses the game.} (25. a5 $17 {is more resistant.} Rd6 26. Ndf2) 25... cxd3 $19 {[%emt 0:01:44]} 26. exf6 {[%emt 0:00:21]} Bxf6 {[%emt 0:00:25]} 27. Bd1 {[%emt 0:01:11]} Bxb2 {[%emt 0:04:36]} 28. Rab1 {[%emt 0:00:05]} Bf6 {[%emt 0:02:20]} 29. Ng5 {[%emt 0:02:37]} b3 {[%emt 0:02:07][%cal Bb4b3,Bb3b2][%mdl 32] ...b2 is the strong threat.} 30. Ba5 $2 {[%emt 0:02:38]} (30. a5 Rb5 31. Be3) 30... b2 {[%emt 0:02:28] Black is clearly winning.} 31. Rc7 {[%emt 0:00:44]} Qd6 {[%emt 0:00:18]} 32. Bxb6 {[%emt 0:00:12]} Qxb6+ {[%emt 0:00:07] Weighted Error Value: White=0.85/Black=0.31} 0-1

[Event "Slovakian-ch Youth 2022"]
[Site "Lubovna"]
[Date "2022.05.26"]
[Round "7.7"]
[White "Toth, Marton"]
[Black "Demjan, David"]
[Result "0-1"]
[ECO "B07"]
[WhiteElo "1849"]
[BlackElo "1375"]
[Annotator "NA RC COMBH"]
[PlyCount "56"]
[EventDate "2022.05.22"]
[EventCountry "SVK"]
[SourceTitle "playchess.com"]
[Source "ChessBase"]
[SourceQuality "1"]
[TimeControl "40/5400+30:1800+30"]

1. e4 d6 2. d4 Nf6 3. Nc3 Nbd7 4. f3 e5 5. Be3 {[%emt 0:06:12]} Be7 {[%emt 0:03:52]} 6. Bc4 {[%emt 0:04:44]} c6 {[%emt 0:03:53]} 7. a4 {[%emt 0:01:27]} Qc7 {[%emt 0:04:16]} 8. b4 {[%emt 0:05:54]} d5 {[%emt 0:11:37]} 9. dxe5 {[%emt 0:07:33]} Bxb4 {[%emt 0:15:54]} 10. Nge2 {[%emt 0:07:01]} Nxe5 {[%emt 0:02:51]} 11. Ba2 {[%emt 0:07:29]} dxe4 {[%emt 0:02:48]} 12. fxe4 {[%emt 0:01:44]} Nxe4 {[%emt 0:01:12]} 13. Qd4 {[%emt 0:01:53]} Nxc3 {[%emt 0:01:35]} 14. Nxc3 {[%emt 0:02:07]} c5 {[%emt 0:02:30]} 15. Bxf7+ {[%emt 0:15:59]} Nxf7 {[%emt 0:13:02]} 16. Qxg7 {[%emt 0:01:33]} Qe5 {[%emt 0:02:27]} 17. Qxe5+ {[%emt 0:02:45]} Nxe5 {[%emt 0:00:10]} 18. Bd2 {[%emt 0:05:31]} Nc4 {[%emt 0:04:11]} 19. O-O-O {[%emt 0:01:59]} O-O {[%emt 0:01:30]} 20. Bh6 {[%emt 0:06:54]} Bg4 {[%emt 0:02:11]} 21. Nd5 {[%emt 0:02:57]} Rf2 {[%emt 0:02:17]} 22. Rdf1 {[%emt 0:03:09]} Rxf1+ {[%emt 0:06:21]} 23. Rxf1 {[%emt 0:00:02]} Be2 {[%emt 0:02:58]} 24. Ne7+ {[%emt 0:01:46]} Kh8 {[%emt 0:00:22]} 25. Rf2 {[%emt 0:00:58]} Bh5 {[%emt 0:00:43]} 26. g4 {[%emt 0:00:36]} Bxg4 {[%emt 0:00:55]} 27. Rf4 {[%emt 0:00:06]} Bd2+ {[%emt 0:00:20]} 28. Kb1 {[%emt 0:00:47]} Bxf4 {[%emt 0:00:10]} 0-1

[Event "Slovakian-ch Youth 2022"]
[Site "Lubovna"]
[Date "2022.05.26"]
[Round "7.8"]
[White "Nadzamova, Viktoria"]
[Black "Bidulsky, Matej"]
[Result "1-0"]
[ECO "D02"]
[WhiteElo "2135"]
[BlackElo "1800"]
[Annotator "TA"]
[PlyCount "53"]
[EventDate "2022.05.22"]
[EventCountry "SVK"]
[SourceTitle "playchess.com"]
[Source "ChessBase"]
[SourceQuality "1"]
[TimeControl "40/5400+30:1800+30"]

{[%evp 11,53,35,25,0,66,63,75,82,96,81,105,95,103,50,165,112,106,107,107,115,108,109,107,112,108,110,210,211,206,210,204,211,204,212,218,220,204,203,212,209,206,205,194,62]} 1. Nf3 {[%emt 0:04:53]} c5 {[%emt 0:05:54]} 2. g3 {[%emt 0:03:20]} d5 {[%emt 0:00:45]} 3. Bg2 {[%emt 0:00:46]} Nc6 {[%emt 0:00:12]} 4. d4 {[%emt 0:03:31]} cxd4 {[%emt 0:01:28]} 5. Nxd4 {[%emt 0:00:11]} e5 {[%emt 0:00:06]} 6. Nxc6 {[%emt 0:01:43]} bxc6 {[%emt 0:00:09]} 7. O-O {[%emt 0:00:10][%cal Oc2c4] D02: 1 d4 d5 2 Nf3 sidelines, including 2...Nf6 3 g3 and 2...Nf6 3 Bf4.} (7. c4 $5 {[%cal Rc4d5]}) 7... Bb7 {[%emt 0:02:02]} (7... Bc5 $11) 8. c4 $14 {[%emt 0:05:47]} Qd7 {[%emt 0:02:49]} 9. Qa4 {[%emt 0:16:13] [#] White is better.} Bc5 $146 {[%emt 0:05:03]} ({Predecessor:} 9... Nf6 10. Rd1 d4 11. e3 Be7 12. f4 d3 13. fxe5 Ng4 14. Qa5 O-O 15. Be4 Qe6 16. Bxd3 {0-1 (29) Nefedov,D (2125)-Timofeev,D (2185) Kimry 2003}) 10. Nc3 {[%emt 0:00:30]} Ne7 {[%emt 0:02:23]} 11. Rd1 {[%emt 0:07:56]} Rd8 {[%emt 0:03:04]} 12. Ne4 {[%emt 0:09:38]} ({White should play} 12. Bg5 $16) 12... Bd4 {[%emt 0:00:42] [#]} (12... Bb6 $1 $14) 13. cxd5 {[%emt 0:00:29]} (13. Rxd4 $1 $18 {[%mdl 512]} exd4 14. Nc5) 13... cxd5 $16 {[%emt 0:00:17]} 14. Nd6+ $1 {[%emt 0:00:14]} Kf8 {[%emt 0:00:43]} 15. Qxd7 {[%emt 0:00:04] White is more active.} Rxd7 {[%emt 0:00:52]} 16. Nxb7 {[%emt 0:14:54]} Rxb7 {[%emt 0:00:30]} 17. e3 {[%emt 0:00:30]} Bb6 {[%emt 0:00:30]} (17... Bxb2 $2 18. Rb1 f6 19. Bxb2 $18) 18. Bxd5 {[%emt 0:01:02]} Rd7 {[%emt 0:02:43]} (18... Nxd5 $16 19. Rxd5 f6) 19. Bf3 {[%emt 0:22:34] White is clearly better.} Rxd1+ {[%emt 0:07:39]} 20. Bxd1 {[%emt 0:00:30]} Ba5 {[%emt 0:00:30]} 21. b4 {[%emt 0:00:30]} Bxb4 {[%emt 0:00:30]} 22. Rb1 {[%emt 0:00:30]} a5 {[%emt 0:00:30]} 23. a3 {[%emt 0:00:30]} Bd6 {[%emt 0:00:30]} 24. Rb6 {[%emt 0:00:30]} Nc8 {[%emt 0:00:30]} 25. Rb7 {[%emt 0:00:30] Black must now prevent Bg4.} g6 {[%emt 0:00:30]} 26. Bb3 {[%emt 0:00:30]} Ne7 {[%emt 0:00:30]} 27. e4 {[%emt 0:00:30] Weighted Error Value: White=0.06 (flawless) /Black=0.26 (precise)} (27. f4 $18) 1-0

[Event "Slovakian-ch Youth 2022"]
[Site "Lubovna"]
[Date "2022.05.26"]
[Round "7.8"]
[White "Ammer, Erik"]
[Black "Hudak, Jan"]
[Result "0-1"]
[ECO "B29"]
[WhiteElo "1320"]
[BlackElo "1688"]
[Annotator "NA RC COMBH"]
[PlyCount "158"]
[EventDate "2022.05.22"]
[EventCountry "SVK"]
[SourceTitle "playchess.com"]
[Source "ChessBase"]
[SourceQuality "1"]
[TimeControl "40/5400+30:1800+30"]

1. e4 {[%emt 0:00:25]} c5 {[%emt 0:00:07]} 2. Nf3 {[%emt 0:00:05]} Nf6 {[%emt 0:00:20]} 3. Nc3 {[%emt 0:00:22]} Nc6 {[%emt 0:00:20]} 4. d3 {[%emt 0:01:28]} e6 {[%emt 0:01:41]} 5. Bg5 {[%emt 0:01:02]} Be7 {[%emt 0:02:13]} 6. Bf4 {[%emt 0:01:15]} O-O {[%emt 0:01:39]} 7. Be2 {[%emt 0:00:42]} d5 {[%emt 0:01:51]} 8. exd5 {[%emt 0:01:52]} exd5 {[%emt 0:00:14]} 9. O-O {[%emt 0:00:15]} a6 {[%emt 0:06:13]} 10. h3 {[%emt 0:02:08]} Be6 {[%emt 0:07:22]} 11. Re1 {[%emt 0:01:44]} Rc8 {[%emt 0:03:43]} 12. Nh2 {[%emt 0:03:14]} Nd4 {[%emt 0:05:15]} 13. Bf3 {[%emt 0:04:11]} Qb6 {[%emt 0:14:21]} 14. Rb1 {[%emt 0:01:47]} Bd6 {[%emt 0:03:23]} 15. Bg5 {[%emt 0:02:14]} Bxh2+ {[%emt 0:06:15]} 16. Kxh2 Qd6+ 17. Kg1 {[%emt 0:02:50]} Nd7 {[%emt 0:01:38]} 18. Bh4 {[%emt 0:04:14]} Qf4 {[%emt 0:05:46]} 19. Bg4 {[%emt 0:02:40]} f5 {[%emt 0:00:35]} 20. Bg3 {[%emt 0:00:18]} Qg5 {[%emt 0:00:16]} 21. Bf3 {[%emt 0:02:47]} f4 {[%emt 0:00:33]} 22. Bh2 {[%emt 0:01:16]} Bxh3 {[%emt 0:00:37]} 23. Nxd5 {[%emt 0:01:02]} Bxg2 {[%emt 0:03:07]} 24. Bxg2 {[%emt 0:08:21]} f3 {[%emt 0:00:30]} 25. Bg3 {[%emt 0:00:15]} Qxd5 {[%emt 0:03:47]} 26. Bh3 {[%emt 0:02:19]} Ne2+ {[%emt 0:01:02]} 27. Rxe2 {[%emt 0:02:04]} fxe2 {[%emt 0:00:17]} 28. Qxe2 {[%emt 0:00:03]} Rce8 {[%emt 0:00:14]} 29. Qg4 {[%emt 0:00:56]} Ne5 {[%emt 0:01:41]} 30. c4 {[%emt 0:07:58]} Qxd3 {[%emt 0:05:08]} 31. Qd1 {[%emt 0:01:33]} Qxd1+ {[%emt 0:00:19]} 32. Rxd1 {[%emt 0:00:04]} Nf3+ {[%emt 0:01:40]} 33. Kg2 {[%emt 0:00:29]} Re1 {[%emt 0:00:17]} 34. Rxe1 {[%emt 0:00:33]} Nxe1+ {[%emt 0:00:07]} 35. Kf1 {[%emt 0:00:07]} Nd3 {[%emt 0:00:34]} 36. b3 {[%emt 0:00:35]} Nc1 {[%emt 0:00:42]} 37. Bd6 {[%emt 0:00:23]} Rd8 {[%emt 0:01:16]} 38. Bxc5 {[%emt 0:00:22]} Rd1+ {[%emt 0:00:34]} 39. Kg2 {[%emt 0:00:10]} Nxa2 {[%emt 0:00:13]} 40. Be6+ {[%emt 0:00:08]} Kh8 {[%emt 0:00:15]} 41. Bd5 {[%emt 0:30:09]} Rb1 {[%emt 0:30:35]} 42. Bxb7 {[%emt 0:00:33]} a5 {[%emt 0:00:44]} 43. Bb6 {[%emt 0:00:37]} Rxb3 {[%emt 0:00:17]} 44. c5 {[%emt 0:00:02]} Nb4 {[%emt 0:10:06]} 45. Bxa5 {[%emt 0:02:14]} Nd3 {[%emt 0:03:19]} 46. c6 {[%emt 0:01:39]} Nf4+ {[%emt 0:00:20]} 47. Kg1 {[%emt 0:02:27]} Nd5 {[%emt 0:00:32]} 48. Bd8 {[%emt 0:03:16]} Rc3 {[%emt 0:01:54]} 49. Ba5 {[%emt 0:02:19]} Rc2 {[%emt 0:00:20]} 50. Kg2 {[%emt 0:00:25]} Kg8 {[%emt 0:03:16]} 51. Kf3 {[%emt 0:00:56]} Kf7 {[%emt 0:00:19]} 52. Ke4 {[%emt 0:00:45]} Ke6 {[%emt 0:00:24]} 53. f4 {[%emt 0:01:28]} Kd6 {[%emt 0:00:49]} 54. Kf5 {[%emt 0:00:53]} Rc4 {[%emt 0:00:55]} 55. Kg5 {[%emt 0:01:55]} Rc5 {[%emt 0:01:53]} 56. Bd2 {[%emt 0:01:45]} Ne7+ {[%emt 0:02:01]} 57. f5 {[%emt 0:02:04]} Nxc6 {[%emt 0:00:55]} 58. Be3 {[%emt 0:02:06]} Rb5 {[%emt 0:01:15]} 59. Bxc6 {[%emt 0:00:49]} Kxc6 {[%emt 0:00:09]} 60. Kg4 {[%emt 0:00:16]} Kd6 {[%emt 0:00:22]} 61. Bd2 {[%emt 0:00:59]} Ke7 {[%emt 0:00:32]} 62. Bc3 {[%emt 0:00:47]} Kf7 {[%emt 0:00:08]} 63. Kf4 {[%emt 0:00:34]} Rb1 {[%emt 0:01:22]} 64. Kg4 {[%emt 0:01:04]} Rg1+ {[%emt 0:00:23]} 65. Kf4 {[%emt 0:00:40]} h5 {[%emt 0:01:28]} 66. Bd4 {[%emt 0:00:17]} Rg4+ {[%emt 0:00:26]} 67. Ke5 {[%emt 0:00:26]} Rxd4 {[%emt 0:00:40]} 68. Kxd4 {[%emt 0:00:11]} Kf6 {[%emt 0:00:04]} 69. Ke4 {[%emt 0:00:25]} Kg5 {[%emt 0:00:07]} 70. Kf3 {[%emt 0:00:22]} Kxf5 {[%emt 0:00:09]} 71. Kg3 {[%emt 0:00:08]} g5 {[%emt 0:00:11]} 72. Kh3 {[%emt 0:00:08]} Kf4 {[%emt 0:00:13]} 73. Kh2 {[%emt 0:00:21]} Kf3 {[%emt 0:00:24]} 74. Kh3 {[%emt 0:00:04]} g4+ {[%emt 0:00:12]} 75. Kh2 {[%emt 0:00:03]} g3+ {[%emt 0:00:04]} 76. Kg1 {[%emt 0:00:06]} g2 {[%emt 0:00:06]} 77. Kh2 {[%emt 0:00:21]} Kf2 {[%emt 0:00:08]} 78. Kh3 {[%emt 0:00:02]} g1=Q {[%emt 0:00:10]} 79. Kh4 {[%emt 0:00:06]} Qg3+ {[%emt 0:00:13]} 0-1